bitfinex/quotes_SOLUSD_20220302
["timestamp","ask_amount","ask_price","bid_price","bid_amount"]
[1646233348159,8.904,104.77,104.64,59.58012567]
[1646233348761,8.904,104.77,104.65,174.02810916]
[1646233348960,8.904,104.77,104.67,100.86542661]
[1646233349160,8.904,104.77,104.68,144.08300619]
[1646233349360,8.904,104.77,104.68,45.33300619]
[1646233349761,8.904,104.77,104.68,144.08300619]
[1646233349963,8.904,104.77,104.7,56.5329242]
[1646233350168,8.904,104.77,104.58,62.02662682]
[1646233350367,0.6480941,104.76,104.58,62.02662682]
[1646233350564,0.6480941,104.76,104.6,61.21196949]
[1646233350764,8.904,104.77,104.64,5.0]
[1646233350968,8.904,104.77,104.62,60.77325679]
[1646233351265,8.904,104.77,104.66,60.09238184]
[1646233351664,8.904,104.77,104.66,118.87238184]
[1646233351864,8.904,104.77,104.69,203.14571602]
[1646233352263,8.904,104.77,104.7,6.0]
[1646233352464,8.904,104.77,104.71,115.22314249]
[1646233352663,8.904,104.77,104.72,22.56106734]
[1646233352867,8.904,104.77,104.73,57.32708642]
[1646233353063,13.9949,104.8,104.73,57.32708642]
[1646233353464,0.83331587,104.79,104.63,0.97]
[1646233353667,0.83331587,104.79,104.63,59.75]
[1646233353864,13.9949,104.8,104.67,61.12514679]
[1646233354063,13.9949,104.8,104.63,0.97]
[1646233354263,0.55256861,104.79,104.63,0.97]
[1646233354464,18.9949,104.8,104.64,59.34649134]
[1646233354664,18.9949,104.8,104.66,112.23427135]
[1646233354866,18.9949,104.8,104.68,47.79844209]
[1646233355067,18.9949,104.8,104.69,14.3209]
[1646233355475,0.77184283,104.79,104.66,5.0]
[1646233355667,70.32,104.78,104.66,5.0]
[1646233355866,0.81844598,104.77,104.66,5.0]
[1646233356066,11.54,104.76,104.58,101.12686628]
[1646233356270,11.54,104.76,104.59,60.27409547]
[1646233356466,8.74474,104.78,104.59,60.27409547]
[1646233356667,15.15104598,104.77,104.61,14.3336]
[1646233356870,0.81844598,104.75,104.62,49.86834325]
[1646233357067,0.81844598,104.75,104.62,51.94657297]
[1646233357068,12.35844598,104.75,104.62,51.94657297]
[1646233357267,11.54,104.75,104.62,51.94657297]
[1646233358068,25.8746,104.75,104.62,51.94657297]
[1646233358470,3.74474,104.74,104.62,51.94657297]
[1646233358670,8.74474,104.74,104.62,51.94657297]
[1646233359273,0.52484076,104.73,104.57,18.1578]
[1646233359472,0.52484076,104.73,104.55,3.822]
[1646233359473,47.8104,104.7,104.55,3.822]
[1646233359672,15.94197413,104.69,104.54,26.78786319]
[1646233359874,77.01518642,104.69,104.54,26.78786319]
[1646233360073,18.23518642,104.69,104.54,26.78786319]
[1646233360299,15.28474,104.69,104.55,57.09773734]
[1646233360699,5.0,104.67,104.55,57.09773734]
[1646233360900,19.3437,104.67,104.55,57.09773734]
[1646233361699,30.8837,104.67,104.55,57.09773734]
[1646233361898,25.8837,104.67,104.55,57.09773734]
[1646233362098,0.5090476,104.66,104.55,57.09773734]
[1646233362300,2.29321229,104.71,104.55,214.62773734]
[1646233362500,11.54,104.71,104.55,214.62773734]
[1646233362704,11.54,104.71,104.57,203.49539404]
[1646233362905,5.0,104.73,104.59,101.1512742]
[1646233363101,5.0,104.73,104.6,145.61698985]
[1646233363507,19.3349,104.73,104.62,43.32531129]
[1646233363710,19.3349,104.73,104.62,45.22121174]
[1646233364104,14.3349,104.73,104.62,45.22121174]
[1646233364305,11.54,104.75,104.62,45.22121174]
[1646233364504,51.62251229,104.77,104.63,98.75]
[1646233364702,24.4514,104.77,104.65,98.75]
[1646233364904,24.4514,104.77,104.66,43.59287109]
[1646233365204,83.2314,104.77,104.66,44.69185356]
[1646233365403,94.7714,104.77,104.66,44.69185356]
[1646233365602,21.53023581,104.76,104.66,44.69185356]
[1646233365804,0.61962118,104.75,104.66,44.69185356]
[1646233366003,14.3348,104.73,104.66,44.69185356]
[1646233366205,87.80263581,104.76,104.66,44.69185356]
[1646233367103,14.3319,104.75,104.66,44.69185356]
[1646233367905,5.0,104.76,104.66,44.69185356]
[1646233368304,5.0,104.76,104.66,157.76825356]
[1646233368504,24.4514,104.77,104.66,157.76825356]
[1646233369104,14.2742,104.79,104.66,216.79825356]
[1646233369305,5.0,104.82,104.66,221.58725356]
[1646233369508,5.0,104.82,104.73,98.75]
[1646233369706,67.12193581,104.88,104.74,158.94420148]
[1646233369906,44.57003581,104.88,104.74,217.72420148]
[1646233370108,44.57003581,104.88,104.76,98.75]
[1646233370306,23.0398,104.88,104.77,61.67665839]
[1646233370710,21.44235581,104.9,104.78,14.3106]
[1646233370907,21.44235581,104.92,104.79,50.0393791]
[1646233371108,21.44235581,104.92,104.8,6.0]
[1646233371307,155.2017,104.96,104.79,51.99093061]
[1646233371708,2.29321229,104.95,104.79,51.99093061]
[1646233372111,14.3069,104.93,104.82,14.3048]
[1646233372307,14.3069,104.93,104.83,46.43779886]
[1646233373412,14.3054,104.95,104.83,46.43779886]
[1646233374112,0.61679745,104.94,104.83,46.43779886]
[1646233374511,74.2091,104.96,104.83,60.74219886]
[1646233374712,14.3031,104.97,104.83,60.74219886]
[1646233374914,2.2997232,104.96,104.83,60.74219886]
[1646233375111,21.45693901,104.96,104.83,46.43779886]
[1646233375411,36.74167901,104.96,104.83,45.93779886]
[1646233375811,36.24167901,104.96,104.83,45.93779886]
[1646233376013,14.3074,104.94,104.83,45.69044992]
[1646233376212,29.59214,104.94,104.8,5.0]
[1646233376412,20.93693901,104.93,104.8,5.0]
[1646233376613,15.28474,104.92,104.8,5.0]
[1646233376813,0.98270243,104.91,104.8,5.0]
[1646233377013,11.54,104.9,104.8,5.0]
[1646233377216,11.54,104.9,104.81,48.96371185]
[1646233377414,5.0,104.88,104.8,5.0]
[1646233377614,20.28474,104.88,104.8,5.0]
[1646233377815,2.2983863,104.87,104.74,25.48933784]
[1646233378014,11.54,104.86,104.73,5.616]
[1646233378214,33.92195581,104.86,104.73,5.616]
[1646233378416,36.22034211,104.86,104.74,47.9247499]
[1646233378615,14.3228,104.83,104.74,49.80217386]
[1646233379416,15.28474,104.86,104.74,49.80217386]
[1646233379616,25.9222,104.9,104.74,49.80217386]
[1646233379819,14.3153,104.87,104.74,64.11827386]
[1646233380420,0.63016787,104.86,104.74,49.80217386]
[1646233380620,4.37490787,104.86,104.74,49.80217386]
[1646233380819,14.3204,104.84,104.74,49.80217386]
[1646233381019,0.67241786,104.83,104.74,49.80217386]
[1646233381219,14.3204,104.84,104.74,49.80217386]
[1646233381419,0.67241786,104.83,104.74,49.80217386]
[1646233381718,14.99401786,104.83,104.74,49.80217386]
[1646233381918,25.8616,104.83,104.74,49.80217386]
[1646233382118,29.60634,104.83,104.68,5.0]
[1646233382322,5.0,104.81,104.68,5.0]
[1646233382518,11.54,104.8,104.65,49.03209289]
[1646233382919,14.3282,104.78,104.66,14.3275]
[1646233383119,14.3282,104.78,104.67,53.34125909]
[1646233383324,11.54,104.8,104.67,53.34125909]
[1646233384623,11.54,104.8,104.68,113.0755]
[1646233384823,5.0,104.82,104.69,60.68114196]
[1646233385023,5.0,104.82,104.69,220.37951088]
[1646233385222,5.0,104.82,104.69,124.42855091]
[1646233385425,5.0,104.82,104.72,60.17873131]
[1646233385824,0.60499876,104.89,104.72,62.29151699]
[1646233386024,14.3139,104.88,104.74,42.97788569]
[1646233386224,14.3139,104.88,104.74,45.24250648]
[1646233386624,5.0,104.87,104.74,45.24250648]
[1646233386823,0.65464173,104.86,104.74,45.24250648]
[1646233387024,14.3178,104.85,104.74,45.24250648]
[1646233387226,0.65464173,104.84,104.74,45.24250648]
[1646233387426,11.54,104.84,104.74,45.24250648]
[1646233387626,16.54,104.87,104.74,45.24250648]
[1646233387824,5.0,104.87,104.74,45.24250648]
[1646233388426,11.54,104.88,104.74,45.24250648]
[1646233388825,3.08267165,104.87,104.74,45.24250648]
[1646233389025,2.2983863,104.87,104.74,59.55950648]
[1646233389326,59.2641,104.89,104.74,59.55950648]
[1646233389526,5.0,104.87,104.74,59.55950648]
[1646233389729,5.0,104.87,104.75,2.54904003]
[1646233389931,5.0,104.87,104.76,103.72654007]
[1646233390127,5.0,104.87,104.77,98.75]
[1646233390329,5.0,104.87,104.78,49.52462711]
[1646233390729,5.0,104.87,104.78,63.83352711]
[1646233390931,14.3074,104.93,104.78,63.83352711]
[1646233391129,14.3074,104.93,104.78,122.61352711]
[1646233391328,14.3074,104.93,104.79,100.77037831]
[1646233391529,97.3672,104.96,104.81,98.75]
[1646233391728,23.0833,104.96,104.82,152.46954377]
[1646233391931,5.0,104.95,104.84,14.3028]
[1646233392129,5.0,104.95,104.85,59.09103258]
[1646233392531,0.59247115,104.94,104.85,56.684869]
[1646233392729,25.48480787,104.95,104.85,59.00625389]
[1646233392929,39.79000787,104.95,104.85,59.00625389]
[1646233393130,0.55052112,104.94,104.82,14.3065]
[1646233393329,0.55052112,104.94,104.81,5.0]
[1646233393529,2.84890742,104.94,104.81,5.0]
[1646233393732,0.55052112,104.94,104.81,5.0]
[1646233393933,5.55052112,104.94,104.81,5.0]
[1646233394135,14.3091,104.92,104.81,19.3079]
[1646233394332,5.0,104.94,104.82,54.8609833]
[1646233394533,5.0,104.94,104.82,115.95849031]
[1646233394732,5.0,104.94,104.82,124.14149031]
[1646233394932,23.0833,104.96,104.82,124.14149031]
[1646233395138,25.7047,105.03,104.82,124.39149031]
[1646233395335,14.295,105.02,104.84,58.78]
[1646233395531,14.295,105.02,104.87,153.37753838]
[1646233395730,14.295,105.02,104.87,54.62753838]
[1646233395931,0.63255638,105.01,104.87,54.62753838]
[1646233396131,0.63255638,105.01,104.87,57.17657841]
[1646233396531,0.63255638,105.01,104.87,57.42657841]
[1646233396736,0.63255638,105.01,104.87,57.17657841]
[1646233396935,14.295,105.02,104.87,57.17657841]
[1646233397136,14.295,105.02,104.91,56.08197786]
[1646233397340,14.295,105.02,104.91,58.30004771]
[1646233398348,14.2969,105.0,104.91,58.30004771]
[1646233398747,14.2969,105.0,104.87,2.54904003]
[1646233398948,0.98270243,104.99,104.86,5.0]
[1646233399147,0.98270243,105.0,104.86,14.3015]
[1646233399347,59.2045,105.01,104.86,14.3015]
[1646233399748,14.301,104.98,104.87,59.02407255]
[1646233399947,5.0,104.97,104.87,59.02407255]
[1646233400149,5.0,104.97,104.86,14.3015]
[1646233400350,5.0,104.97,104.84,94.0359]
[1646233400351,0.85512881,104.96,104.84,25.75391046]
[1646233400649,0.85512881,104.94,104.76,3.813]
[1646233401047,0.85512881,104.94,104.77,2.54904003]
[1646233401249,3.74474,104.95,104.77,51.75333877]
[1646233401452,15.28474,104.95,104.77,51.75333877]
[1646233401663,14.3086,104.93,104.8,14.3098]
[1646233401964,5.0,104.91,104.81,47.34637064]
[1646233402366,5.0,104.91,104.82,2.54904003]
[1646233402565,5.0,104.91,104.83,45.69546323]
[1646233402767,26.0188,105.03,104.83,45.69546323]
[1646233402971,37.691,104.99,104.84,14.305]
[1646233403173,37.691,104.99,104.85,54.31278826]
[1646233403373,37.691,104.99,104.85,56.86182829]
[1646233403775,37.691,104.99,104.87,45.91162586]
[1646233403972,23.3921,104.99,104.88,14.2985]
[1646233404176,23.3921,104.99,104.89,45.26762078]
[1646233405177,0.54100357,104.98,104.89,45.26762078]
[1646233405377,23.3921,104.99,104.91,59.22456396]
[1646233406178,47.663,105.01,104.91,59.22456396]
[1646233406379,14.2973,105.0,104.91,59.22456396]
[1646233406978,5.0,104.99,104.91,59.22456396]
[1646233407179,0.82755351,104.98,104.91,59.22456396]
[1646233407386,14.3009,104.97,104.91,59.22456396]
[1646233407578,5.0,104.99,104.91,59.22456396]
[1646233408583,61.9905,105.05,104.91,59.22456396]
[1646233408782,14.3981,105.05,104.91,59.22456396]
[1646233408984,47.6442,105.05,104.92,2.54904003]
[1646233409184,47.6442,105.05,104.93,51.40022226]
[1646233409185,5.0,105.04,104.93,51.40022226]
[1646233409383,4.38840215,105.03,104.93,51.40022226]
[1646233410082,4.24737521,105.03,104.93,51.40022226]
[1646233410285,4.24737521,105.03,104.88,2.54904003]
[1646233410484,0.75568172,105.0,104.88,52.13007468]
[1646233410687,0.75568172,105.0,104.86,3.81]
[1646233411091,5.0,105.02,104.86,105.10904003]
[1646233411385,5.0,105.02,104.87,54.95521952]
[1646233411585,14.2958,105.01,104.87,69.25571952]
[1646233411784,18.04054,105.01,104.87,69.25571952]
[1646233411992,0.70653945,105.0,104.87,69.25571952]
[1646233412185,4.45127945,105.0,104.87,54.95521952]
[1646233412385,6.04026832,105.0,104.87,54.95521952]
[1646233412806,5.0,105.0,104.87,54.95521952]
[1646233413194,0.51429174,105.01,104.87,54.95521952]
[1646233413792,5.0,104.99,104.87,54.95521952]
[1646233413994,19.2983,104.99,104.87,69.25621952]
[1646233414193,5.0,104.99,104.88,98.75]
[1646233414394,24.7027,105.05,104.9,98.75]
[1646233414596,24.7027,105.05,104.91,55.43297964]
[1646233414795,5.0,105.04,104.91,55.43297964]
[1646233414996,63.78,105.04,104.91,57.98201967]
[1646233415197,0.64083428,105.03,104.91,55.43297964]
[1646233415402,12.18083428,105.03,104.91,55.43297964]
[1646233415597,5.0,105.0,104.91,55.43297964]
[1646233416097,0.55834822,105.02,104.91,55.43297964]
[1646233416296,70.32,105.02,104.86,5.7208303]
[1646233416497,78.0765,105.0,104.86,3.81]
[1646233416698,71.12760368,104.99,104.86,3.81]
[1646233417096,12.34760368,104.99,104.86,3.81]
[1646233417297,70.32,104.99,104.87,63.26378367]
[1646233417497,14.3019,104.96,104.87,63.26378367]
[1646233419298,14.3019,104.96,104.87,2.4217906]
[1646233419497,14.3019,104.96,104.86,3.81]
[1646233419696,25.8419,104.96,104.86,3.81]
[1646233420415,25.8419,104.96,104.86,57.45937107]
[1646233421015,30.8419,104.96,104.86,57.45937107]
[1646233421211,25.8419,104.96,104.86,57.45937107]
[1646233421413,59.33725643,104.95,104.86,3.81]
[1646233421615,14.3079,104.93,104.86,3.81]
[1646233421820,25.8479,104.93,104.86,3.81]
[1646233422012,84.6279,104.93,104.86,3.81]
[1646233422215,0.58246807,104.92,104.86,3.81]
[1646233422412,11.54,104.91,104.86,3.81]
[1646233422613,5.0,104.91,104.86,3.81]
[1646233422813,19.3114,104.91,104.86,3.81]
[1646233423213,14.3114,104.91,104.86,3.81]
[1646233423412,11.54,104.94,104.86,3.81]
[1646233424114,11.54,104.94,104.86,49.78990325]
[1646233424312,11.54,104.94,104.86,3.81]
[1646233424513,16.54,104.94,104.82,16.47384778]
[1646233424712,11.54,104.94,104.82,16.47384778]
[1646233425113,0.85804803,104.92,104.82,16.47384778]
[1646233425314,0.85804803,104.92,104.83,54.5345999]
[1646233425513,11.54,104.93,104.83,54.5345999]
[1646233426112,14.3073,104.92,104.83,54.5345999]
[1646233426317,47.6832,104.96,104.83,68.8405999]
[1646233426513,59.2232,104.96,104.83,68.8405999]
[1646233428118,5.0,104.94,104.83,245.7395999]
[1646233428317,5.0,104.94,104.84,2.54904003]
[1646233428518,5.0,104.94,104.87,14.2971]
[1646233428717,5.0,104.94,104.88,52.63280574]
[1646233429320,5.0,104.94,104.84,49.95952935]
[1646233429719,11.54,104.98,104.84,49.95952935]
[1646233429918,11.54,104.98,104.85,14.3034]
[1646233430320,5.0,104.97,104.86,53.39596291]
[1646233430621,14.3025,104.96,104.86,53.39596291]
[1646233430821,0.52931311,104.95,104.86,53.39596291]
[1646233431023,14.3025,104.96,104.86,53.39596291]
[1646233431222,5.0,104.97,104.86,53.39596291]
[1646233431434,0.50606131,104.96,104.86,53.39596291]
[1646233431621,11.54,104.96,104.86,53.39596291]
[1646233432421,14.3069,104.93,104.84,14.3057]
[1646233432622,0.50743515,104.92,104.84,14.3057]
[1646233433022,14.3069,104.93,104.84,14.3057]
[1646233433225,5.0,104.94,104.82,5.76385904]
[1646233433423,2.9151755,104.93,104.8,70.8247]
[1646233433624,0.6177704,104.91,104.8,72.99541291]
[1646233433824,0.6177704,104.91,104.79,24.4855]
[1646233433825,12.1577704,104.91,104.76,6.19497881]
[1646233434031,5.0,104.87,104.76,3.813]
[1646233434428,0.77875679,104.85,104.76,50.01919784]
[1646233434628,11.54,104.84,104.76,50.01919784]
[1646233434828,14.3217,104.83,104.76,52.12847633]
[1646233435026,25.8617,104.83,104.76,52.12847633]
[1646233435633,0.77875679,104.82,104.76,52.12847633]
[1646233435830,14.3226,104.81,104.76,52.12847633]
[1646233436027,14.3226,104.81,104.76,50.01919784]
[1646233436326,14.3226,104.81,104.76,52.459551]
[1646233436529,14.3226,104.81,104.7,3.815]
[1646233436727,0.66194022,104.8,104.7,3.815]
[1646233436929,14.3256,104.79,104.68,3.818]
[1646233437528,14.3256,104.79,104.69,55.55944647]
[1646233437728,14.3256,104.79,104.69,57.74229937]
[1646233438329,14.3256,104.79,104.69,2.1828529]
[1646233438529,14.3324,104.75,104.66,3.818]
[1646233438729,0.69373651,104.74,104.63,25.60839736]
[1646233438930,16.54,104.76,104.62,5.0]
[1646233439137,11.54,104.76,104.62,5.0]
[1646233439330,11.54,104.76,104.63,44.22995468]
[1646233439535,11.54,104.76,104.63,46.67037838]
[1646233439730,15.28474,104.79,104.63,58.21037838]
[1646233440132,15.28474,104.79,104.64,6.0]
[1646233440330,15.28474,104.79,104.64,11.54]
[1646233440531,15.28474,104.79,104.65,58.38969375]
[1646233440929,5.0,104.78,104.65,72.71859375]
[1646233441129,18.07064,104.79,104.65,84.50859375]
[1646233441329,14.3259,104.79,104.65,84.50859375]
[1646233441534,71.542,104.82,104.65,84.50859375]
[1646233441736,22.9819,104.82,104.65,143.28859375]
[1646233441932,14.3175,104.85,104.72,14.3175]
[1646233442132,14.6356,104.87,104.73,58.6198484]
[1646233442334,14.6356,104.87,104.73,72.25687582]
[1646233442534,14.6356,104.87,104.73,83.78491585]
[1646233442737,14.6356,104.87,104.73,88.78491585]
[1646233442934,14.3187,104.84,104.73,89.01527582]
[1646233443135,5.0,104.85,104.73,89.01527582]
[1646233443335,5.0,104.85,104.73,91.56431585]
[1646233443534,13.9693,104.88,104.73,103.35431585]
[1646233443935,13.9693,104.88,104.73,202.10431585]
[1646233444134,11.54,104.9,104.73,202.10431585]
[1646233444135,14.3108,104.9,104.73,283.78889968]
[1646233444336,47.7633,104.99,104.74,0.97]
[1646233444536,47.7633,104.99,104.8,14.3065]
[1646233444537,25.953,104.94,104.8,14.3065]
[1646233444736,25.953,104.94,104.81,57.13422117]
[1646233444936,11.54,104.94,104.81,57.13422117]
[1646233445337,0.50513173,104.93,104.81,57.13422117]
[1646233445639,11.54,104.93,104.81,57.13422117]
[1646233445838,14.3091,104.91,104.82,14.3072]
[1646233446039,14.3091,104.91,104.83,60.72927568]
[1646233447040,25.8491,104.91,104.83,60.72927568]
[1646233447440,5.0,104.9,104.83,60.72927568]
[1646233447639,14.3118,104.89,104.83,60.72927568]
[1646233448840,14.3118,104.89,104.83,1.99609292]
[1646233449042,0.62265039,104.88,104.78,14.3126]
[1646233449241,14.3167,104.86,104.76,32.17531034]
[1646233449444,14.3167,104.86,104.76,5.0]
[1646233449641,88.38144,104.86,104.73,33.98532311]
[1646233449940,29.60144,104.86,104.74,61.41509304]
[1646233450142,121.79864,104.86,104.74,61.41509304]
[1646233450340,14.3202,104.83,104.74,61.41509304]
[1646233450744,19.3202,104.83,104.74,61.41509304]
[1646233450946,34.60494,104.83,104.74,61.41509304]
[1646233451142,29.60494,104.83,104.74,61.41509304]
[1646233451345,88.38494,104.83,104.74,61.41509304]
[1646233451541,0.54889605,104.82,104.74,61.41509304]
[1646233451743,14.3256,104.8,104.74,61.41509304]
[1646233452743,5.0,104.79,104.74,61.41509304]
[1646233452943,19.3261,104.79,104.74,61.41509304]
[1646233453546,0.50925865,104.78,104.74,61.41509304]
[1646233453746,5.0,104.79,104.74,61.41509304]
[1646233455146,0.68809378,104.77,104.74,61.41509304]
[1646233455549,3.74474,104.83,104.76,46.08382168]
[1646233455750,3.74474,104.83,104.76,48.30129662]
[1646233456148,8.74474,104.83,104.76,48.30129662]
[1646233456347,3.74474,104.83,104.76,43.30129662]
[1646233456747,18.06444,104.83,104.76,43.30129662]
[1646233457153,14.3197,104.83,104.76,43.30129662]
[1646233457551,19.3197,104.83,104.76,43.30129662]
[1646233457952,14.3197,104.83,104.76,43.30129662]
[1646233458552,20.13475834,104.83,104.76,43.30129662]
[1646233458751,19.3197,104.83,104.76,43.30129662]
[1646233458950,19.3197,104.83,104.77,0.42824687]
[1646233459853,19.3197,104.83,104.76,43.30129662]
[1646233460052,14.3197,104.83,104.76,43.30129662]
[1646233460951,14.3171,104.85,104.76,43.30129662]
[1646233461353,11.54,104.87,104.76,43.30129662]
[1646233461567,36.64257932,104.88,104.76,43.30129662]
[1646233461766,0.84688507,104.87,104.77,0.26890217]
[1646233461966,0.84688507,104.87,104.76,43.30129662]
[1646233462168,15.16138507,104.87,104.76,57.61709662]
[1646233462372,49.32106439,104.87,104.76,43.30129662]
[1646233462768,26.70138507,104.87,104.76,43.30129662]
[1646233464174,26.70138507,104.87,104.76,57.61749662]
[1646233464371,26.70138507,104.87,104.77,0.32194795]
[1646233464572,185.0,104.86,104.73,3.815]
[1646233464772,14.3198,104.83,104.68,11.54]
[1646233464978,15.57934865,104.82,104.61,130.62]
[1646233465171,175.40079914,104.82,104.61,23.963]
[1646233465370,207.80391791,104.82,104.61,26.31515958]
[1646233465573,58.78,104.8,104.62,46.65138657]
[1646233465771,14.3322,104.76,104.62,46.65138657]
[1646233465971,25.8722,104.76,104.62,46.65138657]
[1646233466170,25.8722,104.76,104.63,3.819]
[1646233466372,25.8722,104.76,104.64,60.89350834]
[1646233467172,25.8722,104.76,104.64,159.64350834]
[1646233467373,5.0,104.77,104.65,0.35777447]
[1646233467576,5.0,104.77,104.66,14.3268]
[1646233467776,5.0,104.77,104.67,53.0341887]
[1646233467972,5.0,104.77,104.67,52.67641423]
[1646233468374,11.54,104.79,104.67,52.67641423]
[1646233468573,14.3271,104.77,104.68,0.21447152]
[1646233468773,11.54,104.79,104.68,0.21447152]
[1646233468974,11.54,104.79,104.67,52.67641423]
[1646233469579,16.54,104.81,104.68,73.39883323]
[1646233469778,5.0,104.81,104.69,220.31844934]
[1646233469981,11.54,104.86,104.7,169.61595729]
[1646233470181,11.54,104.86,104.72,0.54595729]
[1646233470384,3.817,104.89,104.72,12.08595729]
[1646233470583,11.54,104.88,104.72,12.08595729]
[1646233470782,5.0,104.86,104.72,14.08904003]
[1646233470981,0.72399118,104.85,104.73,44.25073893]
[1646233471182,19.3151,104.86,104.74,14.3175]
[1646233471388,61.07789502,104.85,104.73,46.72598799]
[1646233471586,72.61789502,104.85,104.73,46.72598799]
[1646233471783,80.17963502,104.85,104.73,46.72598799]
[1646233472286,14.3241,104.82,104.73,46.72598799]
[1646233472482,25.8641,104.82,104.73,46.72598799]
[1646233472883,86.94199502,104.82,104.73,44.25073893]
[1646233473082,0.17646677,104.81,104.73,44.25073893]
[1646233473285,11.54,104.8,104.73,44.25073893]
[1646233473483,15.28474,104.8,104.73,44.25073893]
[1646233473687,17.58263502,104.8,104.73,44.25073893]
[1646233473885,14.3292,104.79,104.73,44.25073893]
[1646233474085,11.54,104.81,104.73,46.35009574]
[1646233474686,11.54,104.81,104.73,44.25073893]
[1646233474886,14.3233,104.8,104.73,46.71415679]
[1646233475085,14.3233,104.8,104.73,46.29673262]
[1646233475287,11.54,104.82,104.73,46.29673262]
[1646233475486,11.54,104.83,104.73,46.29673262]
[1646233475686,12.37021348,104.84,104.73,46.29673262]
[1646233476088,25.8587,104.84,104.74,0.24046602]
[1646233476486,5.0,104.84,104.73,46.29673262]
[1646233476887,5.0,104.84,104.73,48.84577265]
[1646233477089,0.74422501,104.83,104.73,48.84577265]
[1646233477390,2.29789502,104.83,104.73,46.29673262]
[1646233477688,16.61939502,104.83,104.73,46.29673262]
[1646233477890,14.3215,104.83,104.73,46.29673262]
[1646233478290,0.91414172,104.86,104.73,46.29673262]
[1646233478491,12.45414172,104.86,104.74,0.42418744]
[1646233478988,12.45414172,104.86,104.73,46.29673262]
[1646233479188,26.77114172,104.86,104.75,44.88295931]
[1646233479388,28.15489502,104.86,104.75,46.86526699]
[1646233480189,14.3216,104.83,104.75,44.88295931]
[1646233480590,14.3216,104.83,104.75,47.0938783]
[1646233480796,3.74474,104.82,104.7,6.28026989]
[1646233480990,15.28474,104.82,104.68,29.4966]
[1646233481196,17.52102721,104.82,104.68,2.35791578]
[1646233481392,14.328,104.78,104.62,81.27156551]
[1646233481592,14.328,104.78,104.61,14.3327]
[1646233481593,3.74474,104.77,104.61,14.3327]
[1646233481794,0.15681895,104.76,104.63,48.50702071]
[1646233481993,11.54,104.75,104.63,48.50702071]
[1646233482393,13.83789502,104.75,104.63,48.50702071]
[1646233482593,11.54,104.75,104.64,3.819]
[1646233482793,13.83193511,104.75,104.65,55.28609192]
[1646233482995,14.3335,104.74,104.65,53.00225963]
[1646233483193,25.8735,104.74,104.65,53.00225963]
[1646233483895,28.16543511,104.74,104.65,53.00225963]
[1646233484297,31.98443511,104.74,104.65,53.00225963]
[1646233484497,35.72917511,104.74,104.65,53.00225963]
[1646233484695,31.91017511,104.74,104.65,53.00225963]
[1646233485599,31.91017511,104.74,104.6,26.19172982]
[1646233485600,0.29460865,104.73,104.6,26.19172982]
[1646233485795,14.3399,104.7,104.59,24.1783]
[1646233485996,14.3399,104.7,104.59,26.12880226]
[1646233485997,11.54,104.69,104.59,26.12880226]
[1646233486597,15.28474,104.69,104.6,46.8856888]
[1646233486796,17.5648412,104.69,104.6,46.8856888]
[1646233486995,14.3411,104.68,104.6,44.72210132]
[1646233487196,11.54,104.67,104.55,3.822]
[1646233487398,13.8201012,104.67,104.55,3.822]
[1646233487597,2.2801012,104.66,104.55,3.822]
[1646233487798,5.0,104.65,104.55,3.822]
[1646233488202,5.0,104.65,104.56,61.210597]
[1646233488400,5.0,104.65,104.57,14.73731878]
[1646233488598,5.0,104.65,104.58,60.07437397]
[1646233488798,11.54,104.7,104.58,60.07437397]
[1646233488999,11.54,104.72,104.59,0.39771878]
[1646233489203,23.6868,104.75,104.59,2.94675881]
[1646233489401,23.6868,104.75,104.6,11.54]
[1646233489600,11.54,104.78,104.64,14.3279]
[1646233489801,5.53382902,104.77,104.65,50.3758233]
[1646233490002,80.0,104.76,104.62,11.54]
[1646233490201,130.0,104.76,104.57,0.97]
[1646233490400,16.9747776,104.75,104.52,82.8858]